bitfinex/quotes_ETHUSD_20240715
["timestamp","ask_amount","ask_price","bid_price","bid_amount"]
[1721037381588,2.3295,3358.9,3358.6,2.97738]
[1721037381952,2.95468157,3358.9,3358.6,2.97738]
[1721037382550,2.95468157,3358.9,3358.7,0.05961821]
[1721037385149,5.49698497,3358.8,3358.7,0.05961821]
[1721037385345,9.99226868,3358.8,3358.7,0.05961821]
[1721037385647,9.99226868,3358.8,3357.6,1.55296123]
[1721037385648,2.4453,3358.1,3357.6,2.97829]
[1721037385884,2.4453,3358.1,3358.0,2.97796]
[1721037390497,2.3495,3358.4,3358.2,2.97776]
[1721037390692,2.3495,3358.7,3358.3,2.97769]
[1721037391394,2.3495,3358.7,3358.4,2.9776]
[1721037391559,2.3495,3358.7,3358.5,2.97749]
[1721037391965,2.3495,3358.7,3358.4,1.086]
[1721037392302,2.3495,3358.7,3358.2,4.06375]
[1721037392958,2.3495,3358.7,3358.2,2.97775]
[1721037393704,2.3495,3358.7,3358.4,2.9776]
[1721037396565,2.3495,3358.7,3358.3,2.97767]
[1721037397539,2.3495,3358.7,3358.4,3.03558492]
[1721037398375,2.3495,3358.7,3358.4,0.05798492]
[1721037398706,2.73837512,3358.7,3358.2,2.97771]
[1721037398900,6.52186982,3358.6,3358.5,0.05792817]
[1721037399103,2.97772,3358.3,3357.7,3.0]
[1721037399402,2.384,3358.2,3357.7,3.0]
[1721037399569,2.384,3358.2,3357.8,0.05650372]
[1721037399965,2.384,3358.2,3357.7,3.0]
[1721037400315,2.384,3358.2,3357.8,0.05650372]
[1721037400601,2.384,3358.2,3357.7,3.0]
[1721037400902,2.384,3358.2,3357.8,0.05650372]
[1721037401105,3.217925,3358.2,3357.8,0.05650372]
[1721037401396,3.217925,3358.2,3357.9,0.05644574]
[1721037401797,3.217925,3358.2,3358.0,0.05638777]
[1721037402100,3.217925,3358.2,3357.6,2.9783]
[1721037402309,2.384,3358.2,3358.1,0.0563298]
[1721037402508,2.384,3358.2,3357.6,2.9783]
[1721037402674,2.384,3358.2,3358.1,0.0563298]
[1721037403700,2.3575,3358.1,3357.5,2.99]
[1721037403883,0.07446009,3358.0,3357.5,2.99]
[1721037404083,2.3575,3357.9,3357.5,2.99]
[1721037405570,5.33555,3357.9,3357.5,2.99]
[1721037405771,2.3575,3357.8,3357.5,2.99]
[1721037405967,3.212694,3357.8,3357.5,2.99]
[1721037407605,2.3575,3357.8,3357.5,2.99]
[1721037408209,2.43196093,3357.8,3357.5,2.99]
[1721037408507,2.3135,3357.6,3357.5,2.99]
[1721037409718,2.97838,3357.6,3356.9,2.97889]
[1721037409917,2.3691694,3357.5,3356.9,2.97889]
[1721037412599,2.3691694,3357.5,3357.0,0.05523975]
[1721037416027,2.2834,3357.4,3357.0,0.05523975]
[1721037416342,2.3578694,3357.3,3357.0,0.05523975]
[1721037417345,2.2834,3357.3,3357.0,0.05523975]
[1721037417543,2.2729,3357.1,3357.0,0.05523975]
[1721037417842,2.2729,3357.1,3356.5,9.85525]
[1721037418009,2.2729,3357.1,3356.6,2.97917]
[1721037418208,2.2729,3357.1,3357.0,0.05342697]
[1721037418415,2.2729,3357.1,3357.0,0.05342757]
[1721037418609,2.2729,3357.1,3356.6,2.97917]
[1721037419039,2.2729,3357.1,3356.7,0.05360401]
[1721037422839,2.2729,3357.1,3356.8,2.97899]
[1721037423053,2.2729,3357.1,3356.8,3.03255943]
[1721037427435,2.4213,3356.9,3356.8,0.05356943]
[1721037427629,2.4213,3356.9,3356.5,5.76927]
[1721037427829,2.4213,3356.9,3356.6,0.05368547]
[1721037430760,2.4213,3356.9,3356.7,0.05366592]
[1721037431263,2.4213,3356.9,3356.8,0.05360971]
[1721037431474,3.259205,3356.9,3356.8,0.05360971]
[1721037431645,3.259205,3356.9,3356.4,3.0]
[1721037431849,2.4312,3356.8,3356.5,0.05378377]
[1721037432453,2.97914,3356.7,3356.5,0.05378377]
[1721037432659,2.4312,3356.6,3356.0,2.97972]
[1721037432936,2.4312,3356.6,3356.3,2.97945]
[1721037433136,2.4312,3356.6,3356.4,2.97935]
[1721037433659,2.4312,3356.6,3356.5,2.97929]
[1721037433864,2.4312,3356.6,3356.5,4.06529]
[1721037434349,2.4312,3356.6,3356.5,2.97929]
[1721037440554,2.67432,3356.6,3355.7,7.41]
[1721037440855,2.4312,3356.6,3355.8,3.51543463]
[1721037441098,2.4312,3356.6,3356.0,2.97971]
[1721037441587,2.4312,3356.6,3356.1,0.05236454]
[1721037441790,2.78292,3356.6,3356.1,0.05236454]
[1721037442663,3.33092,3356.6,3356.1,0.05236454]
[1721037442863,2.296,3356.5,3356.1,0.05236454]
[1721037443994,2.37049157,3356.5,3356.1,0.05236454]
[1721037444854,2.37049157,3356.5,3355.9,2.97981]
[1721037445052,2.296,3356.5,3355.9,2.97981]
[1721037445288,2.296,3356.5,3356.0,0.05242258]
[1721037446388,2.3692,3356.3,3356.0,0.05242258]
[1721037449156,2.3692,3356.3,3356.0,3.03215258]
[1721037450489,2.3692,3356.3,3356.0,0.05242258]
[1721037450689,1.086,3356.2,3355.8,2.97984]
[1721037450997,2.2784,3356.1,3355.6,3.0996668]
[1721037451678,2.2784,3356.1,3355.7,2.98]
[1721037452687,3.56769514,3356.0,3355.6,0.1196268]
[1721037452993,2.3487,3355.9,3355.6,0.1196268]
[1721037453156,0.68955532,3355.9,3355.6,0.1196268]
[1721037453356,2.3487,3355.8,3355.6,0.1196268]
[1721037453870,2.3487,3355.8,3355.7,0.05101124]
[1721037456785,3.4347,3355.8,3355.7,0.05101124]
[1721037457105,3.54490379,3355.8,3355.7,0.05101124]
[1721037457274,4.62672072,3355.8,3355.7,0.05101124]
[1721037459370,10.58654128,3355.8,3355.7,0.05101124]
[1721037459772,5.2614,3355.7,3355.6,0.1196268]
[1721037460002,8.31591313,3355.7,3355.6,0.1196268]
[1721037460203,8.2414,3355.7,3355.6,0.1196268]
[1721037460415,9.79871408,3355.7,3355.6,0.1196268]
[1721037460622,10.73477572,3355.7,3355.6,0.1196268]
[1721037460773,9.79871408,3355.7,3355.6,0.1196268]
[1721037461379,13.32871408,3355.7,3355.6,0.1196268]
[1721037461972,14.26477572,3355.7,3355.6,0.1196268]
[1721037462192,13.32871408,3355.7,3355.6,0.1196268]
[1721037462412,13.95219892,3355.7,3355.6,0.1196268]
[1721037462906,13.32871408,3355.7,3355.6,0.1196268]
[1721037463278,14.26477572,3355.7,3355.6,0.1196268]
[1721037463709,13.32871408,3355.7,3355.6,0.1196268]
[1721037464588,13.95184887,3355.7,3355.6,0.1196268]
[1721037465280,13.32871408,3355.7,3355.6,0.1196268]
[1721037465483,13.95171829,3355.7,3355.6,0.1196268]
[1721037466004,17.26324263,3355.7,3355.6,0.1196268]
[1721037466206,20.55679626,3355.7,3355.6,0.1196268]
[1721037466592,19.30871408,3355.7,3355.6,0.1196268]
[1721037466910,21.29984901,3355.7,3355.6,0.1196268]
[1721037467413,17.57399965,3355.7,3355.6,0.1196268]
[1721037467618,17.41471408,3355.7,3355.6,0.1196268]
[1721037468019,18.34864016,3355.7,3355.6,0.1196268]
[1721037469505,17.41471408,3355.7,3355.6,0.1196268]
[1721037470326,18.03697619,3355.7,3355.6,0.1196268]
[1721037470529,17.41471408,3355.7,3355.6,0.1196268]
[1721037471233,18.34864016,3355.7,3355.6,0.1196268]
[1721037472126,16.32871408,3355.7,3355.6,0.1196268]
[1721037472293,17.41471408,3355.7,3355.6,0.1196268]
[1721037472493,18.34864016,3355.7,3355.6,0.1196268]
[1721037472693,21.32864016,3355.7,3355.6,0.1196268]
[1721037473302,21.32864016,3355.7,3353.7,0.8978]
[1721037473303,5.26355,3353.9,3353.0,2.98239]
[1721037473532,2.2819,3353.9,3353.2,4.06821]
[1721037473827,2.2819,3354.2,3353.5,2.98193]
[1721037474131,5.2629,3354.6,3353.7,4.06775]
[1721037474424,1.086,3354.5,3353.7,2.98175]
[1721037474631,1.086,3354.5,3353.8,0.05236412]
[1721037475299,1.086,3353.9,3353.8,0.05236412]
[1721037475502,3.4248,3354.1,3353.5,2.98195]
[1721037475702,3.4248,3354.1,3353.8,0.05236412]
[1721037475901,1.086,3353.9,3353.2,2.98218]
[1721037476228,5.3203,3354.1,3353.0,3.0]
[1721037476229,1.086,3353.7,3353.0,3.0]
[1721037476454,4.06784,3353.7,3352.9,3.0]
[1721037476752,2.98184,3353.7,3352.9,5.98247]
[1721037477645,0.07455861,3353.7,3352.9,5.98247]
[1721037477819,2.98176,3353.8,3352.9,7.06847]
[1721037478025,2.3388,3354.1,3352.9,7.06847]
[1721037478026,2.98156,3354.0,3353.0,0.05964687]
[1721037478232,4.06756,3354.0,3353.2,2.9822]
[1721037478444,2.98156,3354.0,3353.2,2.9822]
[1721037478667,2.3388,3354.1,3353.3,1.086]
[1721037478941,2.3388,3354.1,3353.5,1.086]
[1721037479167,2.3077,3354.4,3353.5,1.492813]
[1721037479311,2.3077,3354.4,3353.8,2.9816]
[1721037480203,5.28891,3354.4,3353.6,2.9818]
[1721037480360,1.086,3354.3,3353.6,2.9818]
[1721037480816,1.086,3354.3,3353.3,1.086]
[1721037481018,1.086,3354.3,3353.7,2.98176]
[1721037481512,2.3077,3354.4,3353.7,0.65601352]
[1721037481717,5.35981,3354.8,3354.0,2.9815]
[1721037482219,5.35981,3354.8,3354.1,0.05058345]
[1721037482718,2.379,3354.8,3354.3,2.98124]
[1721037483148,2.379,3354.8,3354.4,0.05039587]
[1721037483658,2.379,3354.8,3354.3,2.98123]
[1721037483859,2.379,3354.8,3354.5,0.05033777]
[1721037484088,2.379,3354.8,3354.4,3.03153587]
[1721037484268,2.379,3354.8,3354.6,0.05027968]
[1721037484464,2.379,3354.8,3354.5,0.05033777]
[1721037484647,2.379,3354.8,3354.7,0.05022159]
[1721037484830,2.379,3354.8,3354.6,0.05027968]
[1721037485201,2.3636,3355.2,3354.7,0.05022159]
[1721037485374,3.196028,3355.2,3354.7,0.05022159]
[1721037485670,2.98054,3355.1,3354.4,2.98114]
[1721037485966,2.3636,3355.2,3354.4,2.98114]
[1721037486368,5.34405,3355.2,3354.4,2.98114]
[1721037486570,5.34405,3355.2,3354.3,2.98123]
[1721037486772,3.514965,3355.1,3354.3,2.98123]
[1721037487063,3.514965,3355.1,3354.4,0.05039587]
[1721037487434,3.514965,3355.1,3354.3,2.98123]
[1721037487977,3.514965,3355.1,3354.4,3.03154587]
[1721037488470,0.534405,3355.1,3354.4,3.03154587]
[1721037488669,5.34405,3355.2,3354.4,3.63283346]
[1721037489172,2.98055,3355.1,3354.4,3.03154587]
[1721037490270,5.34405,3355.2,3354.5,2.98105]
[1721037490638,2.98055,3355.1,3354.6,0.05027968]
[1721037491046,2.98055,3355.1,3354.4,2.98115]
[1721037491047,2.98055,3355.1,3354.5,2.98106]
[1721037491237,2.98055,3355.1,3354.7,0.05022159]
[1721037491458,0.83246,3355.0,3354.7,0.05022159]
[1721037491831,2.3636,3355.2,3354.7,0.05022159]
[1721037492368,2.3636,3355.2,3354.8,0.0501635]
[1721037492531,2.3636,3355.2,3354.7,2.98087]
[1721037492731,2.3636,3355.2,3354.9,0.05008735]
[1721037492932,2.3636,3355.2,3354.8,0.05014543]
[1721037493170,2.3636,3355.2,3355.0,0.05002927]
[1721037493373,2.3636,3355.2,3354.9,0.05008735]
[1721037493676,2.3636,3355.2,3354.7,2.98087]
[1721037493839,2.3636,3355.2,3355.0,0.05002927]
[1721037494038,2.897987,3355.2,3354.7,2.98087]
[1721037494242,2.3636,3355.2,3355.1,0.04997119]
[1721037494731,2.3636,3355.2,3354.7,2.98087]
[1721037494937,2.3636,3355.2,3355.1,0.04997119]
[1721037495137,2.3636,3355.2,3354.7,2.98087]
[1721037495347,2.3636,3355.2,3355.1,0.04997119]
[1721037495548,3.196023,3355.2,3354.7,2.98087]
[1721037495781,3.196023,3355.2,3355.1,0.04997119]
[1721037495782,2.3636,3355.2,3355.1,0.04997119]
[1721037495987,2.3636,3355.2,3354.7,2.98087]
[1721037496163,2.3636,3355.2,3355.1,0.04997119]
[1721037496363,2.3636,3355.2,3354.7,2.98087]
[1721037496551,2.3636,3355.2,3355.1,0.04997119]
[1721037496748,2.3636,3355.2,3354.2,0.8978]
[1721037496749,2.3636,3355.2,3354.3,0.05961671]
[1721037496953,2.4408,3355.6,3355.1,2.98045]
[1721037497151,2.4408,3355.6,3355.2,2.98043]
[1721037497389,2.4408,3355.6,3355.2,3.03029855]
[1721037498056,2.4408,3355.6,3355.3,2.98035]
[1721037498371,2.4408,3355.6,3355.4,0.04975242]
[1721037498571,2.3077,3355.9,3355.4,3.02999242]
[1721037498773,2.3077,3355.9,3355.4,2.98024]
[1721037498992,2.3077,3355.9,3355.5,0.04969435]
[1721037499501,2.3077,3355.9,3355.4,2.98024]
[1721037500774,2.3077,3355.9,3355.5,0.04969435]
[1721037501594,2.98009,3355.6,3355.5,0.04969435]
[1721037501761,2.98009,3355.6,3354.9,2.98071]
[1721037501961,0.07451664,3355.5,3354.7,2.98082]
[1721037502187,2.3259,3355.4,3355.0,0.04996303]
[1721037502460,0.07451665,3355.3,3354.7,2.98082]
[1721037502759,0.07451665,3355.3,3354.8,2.98079]
[1721037502983,2.3259,3355.4,3354.8,3.03087822]
[1721037503696,5.30617,3355.4,3354.8,0.05008822]
[1721037503896,0.07451659,3355.3,3354.8,0.05008822]
[1721037504195,0.07451659,3355.3,3354.7,2.98082]
[1721037504356,0.07451659,3355.3,3354.9,0.05001508]
[1721037504557,2.3259,3355.4,3354.8,3.03085316]
[1721037504774,2.3259,3355.4,3355.0,0.049957]
[1721037505087,2.3259,3355.4,3354.9,0.05001568]
[1721037505263,2.3259,3355.4,3355.1,0.04989952]
[1721037505466,2.3259,3355.4,3355.2,0.04984145]
[1721037505891,2.3259,3355.4,3354.8,2.98078]
[1721037506512,5.30618,3355.4,3354.9,0.05001568]
[1721037506705,0.07451651,3355.3,3354.9,0.05001568]
[1721037507386,6.29806904,3355.4,3354.9,0.05001568]
[1721037508578,2.3259,3355.4,3354.9,0.05001568]
[1721037509398,5.30618,3355.4,3354.9,0.05001568]
[1721037509781,2.3259,3355.4,3354.9,0.05001568]
[1721037510923,5.30618,3355.4,3354.9,0.05001568]
[1721037511439,0.07451639,3355.3,3354.9,0.05001568]
[1721037511784,3.05487639,3355.3,3354.9,0.05001568]
[1721037511986,0.07451637,3355.2,3354.7,2.98087]
[1721037512218,2.98036,3355.3,3355.0,0.04995399]
[1721037512425,2.98036,3355.3,3354.7,2.98087]
[1721037512586,2.98036,3355.3,3355.1,0.04990013]
[1721037512783,2.98036,3355.3,3354.7,2.98087]
[1721037513329,3.05487634,3355.3,3354.8,0.05007437]
[1721037513503,0.07451634,3355.2,3354.7,2.98087]
[1721037513824,2.98036,3355.3,3354.8,0.05007738]
[1721037514200,2.98036,3355.3,3354.7,2.98087]
[1721037514539,2.98036,3355.3,3354.8,0.05007738]
[1721037515030,2.98036,3355.3,3354.7,2.98087]
[1721037515184,2.98036,3355.3,3354.9,0.05001989]
[1721037515380,2.98036,3355.3,3354.8,0.05007797]
[1721037515607,2.98036,3355.3,3355.0,0.04996181]
[1721037515784,2.98036,3355.3,3354.9,0.05001989]
[1721037516004,2.98036,3355.3,3355.1,0.04990373]
[1721037516198,5.44177624,3355.2,3355.0,0.04996]
[1721037516397,5.44177624,3355.2,3354.0,0.51568064]
[1721037516398,2.3868,3354.7,3354.0,0.51568064]
[1721037516607,2.3868,3354.7,3354.1,4.07036]
[1721037516930,2.3868,3354.7,3354.1,7.05173]
[1721037517524,2.3868,3354.7,3354.2,0.05042474]
[1721037518096,2.3868,3354.7,3354.2,3.03173474]
[1721037518933,2.3868,3354.7,3354.2,0.05042474]
[1721037519434,2.3868,3354.7,3354.3,0.05036663]
[1721037519754,2.3868,3354.7,3353.7,6.8978]
[1721037519755,5.35897,3354.5,3353.7,8.98174]
[1721037519897,5.43350371,3354.5,3354.4,0.05030853]
[1721037520242,5.43350371,3354.5,3353.7,8.98174]
[1721037520594,5.35897,3354.5,3353.8,3.03234719]
[1721037522817,2.4234,3354.4,3353.8,0.05065719]
[1721037523114,5.405,3353.9,3353.8,0.05065719]
[1721037523323,5.405,3353.9,3353.7,3.0]
[1721037523505,5.405,3353.9,3353.0,2.98234]
[1721037523705,5.405,3353.9,3353.3,2.98212]
[1721037523941,5.405,3353.9,3353.4,0.05088969]
[1721037524302,5.405,3353.9,3353.3,2.98212]
[1721037524504,5.405,3353.9,3353.4,0.05096258]
[1721037524719,5.405,3353.9,3353.3,2.98212]
[1721037524918,5.405,3353.9,3353.4,0.05096258]
[1721037525127,5.405,3353.9,3353.3,2.98212]
[1721037525512,5.405,3353.9,3353.4,0.05096258]
[1721037525841,2.4234,3353.9,3353.3,2.98212]
[1721037526003,2.4234,3353.9,3353.5,0.05097431]
[1721037526200,2.4234,3353.9,3353.4,0.04944928]
[1721037526407,2.4234,3353.9,3353.6,0.04933302]
[1721037526738,2.4234,3353.9,3353.3,2.98212]
[1721037527318,2.4234,3353.9,3353.4,3.03147928]
[1721037527640,2.3799,3354.2,3353.4,3.03147928]
[1721037527942,0.93682501,3354.5,3353.9,2.98159]
[1721037527943,2.3799,3354.5,3353.9,2.98159]
[1721037528450,2.3799,3354.5,3354.0,0.04910054]
[1721037529749,2.3799,3354.5,3354.0,3.03061054]
[1721037530944,2.3799,3354.5,3354.1,2.98137]
[1721037531153,2.4579,3354.8,3354.2,2.98127]
[1721037531325,2.4579,3354.8,3354.2,3.03025432]
[1721037532128,2.4579,3354.8,3354.3,2.98123]
[1721037532443,2.4579,3354.8,3354.4,0.04886812]
[1721037533456,2.4579,3354.8,3354.2,2.98132]
[1721037533667,0.606316,3354.7,3354.5,0.04881002]
[1721037533983,0.606316,3354.7,3352.2,0.74200528]
[1721037533984,2.4068,3353.4,3352.2,0.74200528]
[1721037534109,2.4068,3353.4,3352.7,2.98264]
[1721037534312,0.62426958,3353.9,3352.2,0.1196268]
[1721037534313,0.62426958,3353.9,3353.2,2.98221]
[1721037534549,3.03106958,3354.2,3353.2,2.98221]
[1721037534755,2.4068,3354.2,3353.2,2.98221]
[1721037535047,0.6948644,3354.1,3353.0,2.9824]
[1721037535412,0.62395392,3354.0,3353.0,2.9824]
[1721037535612,0.6948644,3354.1,3353.1,2.98229]
[1721037535817,5.38818,3354.2,3353.2,2.98222]
[1721037536557,6.01213392,3354.2,3353.2,2.98222]
[1721037536764,2.98142,3354.1,3353.2,2.98222]
[1721037537067,2.4068,3354.2,3353.2,2.98222]
[1721037537511,2.4068,3354.2,3353.5,2.98194]
[1721037537710,3.10158448,3354.2,3353.5,2.98194]
[1721037537959,2.4068,3354.2,3353.6,0.05963127]
[1721037538121,2.3134,3354.7,3353.9,2.9816]
[1721037538742,2.3134,3354.7,3354.0,3.04111401]
[1721037539116,0.62395392,3355.1,3354.4,2.98115]
[1721037539313,1.11064027,3355.1,3354.4,2.98115]
[1721037539918,1.11064027,3355.1,3354.5,0.05961562]
[1721037540253,2.3379,3355.2,3354.6,0.04120453]
[1721037540556,2.3379,3355.2,3354.6,3.02217453]
[1721037541145,2.3379,3355.2,3354.7,2.98087]
[1721037541450,2.3379,3355.2,3354.5,3.04066267]
[1721037541451,2.3379,3355.2,3354.8,0.04108835]
[1721037541757,2.3379,3355.2,3354.5,2.98105]
[1721037541965,2.869718,3355.2,3354.9,0.0410107]
[1721037542176,2.869718,3355.2,3354.7,2.98087]
[1721037542317,2.869718,3355.2,3355.0,0.04095203]
[1721037542630,2.869718,3355.2,3354.5,2.98105]
[1721037542829,2.869718,3355.2,3355.1,0.04089395]
[1721037543042,2.869718,3355.2,3354.6,2.98097]
[1721037543247,2.869718,3355.2,3355.1,0.04089395]
[1721037543416,2.3379,3355.2,3354.6,2.98097]
[1721037543616,2.3379,3355.2,3355.1,0.04089395]
[1721037543841,2.3379,3355.2,3354.5,2.98105]
[1721037544043,2.3379,3355.2,3355.1,0.04089395]
[1721037544255,2.3379,3355.2,3354.6,2.98097]
[1721037544455,2.3379,3355.2,3355.1,0.04089395]
[1721037544660,2.3379,3355.2,3354.6,2.98097]
[1721037544867,2.3379,3355.2,3355.1,0.04089395]
[1721037545044,2.3379,3355.2,3354.6,2.98097]
[1721037545248,2.3379,3355.2,3355.1,0.03953676]
[1721037545765,5.31834,3355.2,3354.3,2.98124]
[1721037545966,2.98054,3355.1,3354.4,3.0]
[1721037546661,2.98054,3355.1,3354.4,5.98108]
[1721037547225,2.98067,3355.0,3354.4,3.0]
[1721037547438,2.98067,3355.0,3354.5,0.03988526]
[1721037547658,2.98067,3355.0,3354.3,3.0]
[1721037547826,2.98067,3355.0,3354.6,0.03982717]
[1721037548184,2.98067,3355.0,3354.2,7.41]
[1721037548185,2.98116,3354.4,3354.2,7.41]
[1721037548474,2.981,3354.6,3353.4,2.614]
[1721037548621,2.981,3354.6,3353.8,2.98169]
[1721037548818,2.4402,3354.9,3353.9,2.98156]
[1721037549052,2.98094,3354.7,3353.9,2.98156]
[1721037549538,2.98098,3354.6,3353.9,2.98156]
[1721037551450,2.98108,3354.5,3353.8,2.98168]
[1721037552138,2.277,3354.4,3353.8,2.98168]
[1721037553136,2.98124,3354.3,3353.6,2.98183]
[1721037553339,2.98124,3354.3,3353.7,3.0]
[1721037553522,2.98124,3354.3,3353.7,5.98177]
[1721037553976,2.98144,3354.1,3353.7,3.0]
[1721037554169,2.98144,3354.1,3353.4,2.98198]
[1721037554370,2.98144,3354.1,3353.5,3.0]
[1721037555265,2.277,3354.4,3353.7,2.98171]
[1721037556065,5.25817,3354.4,3353.7,2.98171]
[1721037556629,2.277,3354.4,3353.8,2.98168]
[1721037558866,2.277,3354.4,3353.9,2.9816]
[1721037560288,3.25701999,3354.4,3353.9,2.9816]
[1721037562456,3.25701999,3354.4,3354.0,0.03778213]
[1721037567378,3.88150793,3354.4,3354.0,0.03778213]
[1721037567581,3.25701999,3354.4,3354.0,0.03778213]
[1721037568368,3.88150793,3354.4,3354.0,0.03778213]
[1721037568569,3.25701999,3354.4,3354.0,0.03778213]
[1721037570356,3.88173431,3354.4,3354.0,0.03778213]
[1721037570797,3.25701999,3354.4,3354.0,0.03778213]
[1721037574398,3.88173431,3354.4,3354.0,0.03778213]
[1721037574804,3.25701999,3354.4,3354.0,0.03778213]
[1721037575498,2.3102,3354.2,3354.0,0.03778213]
[1721037575867,2.3102,3354.2,3353.7,3.0]
[1721037576068,2.3102,3354.2,3354.1,0.03773225]
[1721037576266,2.3102,3354.2,3353.7,3.0]
[1721037576479,2.3102,3354.2,3354.1,0.03773166]
[1721037576692,3.27792119,3354.2,3353.7,4.089]
[1721037576859,3.27792119,3354.2,3354.1,0.03773166]
[1721037577065,3.27792119,3354.2,3353.7,7.07075]
[1721037577284,2.3102,3354.2,3354.1,0.03773166]
[1721037577471,2.3102,3354.2,3353.7,7.07075]
[1721037577689,2.3102,3354.2,3354.1,0.03773166]
[1721037577907,2.3102,3354.2,3353.7,7.07075]
[1721037578068,2.3102,3354.2,3354.1,0.03773166]
[1721037578264,2.3102,3354.2,3353.7,7.07075]
[1721037578465,2.3102,3354.2,3354.1,0.03773166]
[1721037578662,2.3102,3354.2,3353.7,7.07075]
[1721037578918,2.3102,3354.2,3354.1,0.03773166]
[1721037579113,2.3102,3354.2,3353.7,7.07075]
[1721037579409,2.3102,3354.2,3354.1,0.03773166]
[1721037579566,2.3102,3354.2,3353.8,0.03790601]
[1721037581111,2.3102,3354.2,3353.9,1.089]
[1721037581478,2.3102,3354.2,3354.0,0.03779274]
[1721037585505,2.4916,3354.1,3353.6,3.0]
[1721037585713,2.4916,3354.1,3353.7,0.51579874]
[1721037585871,2.4916,3354.1,3353.8,0.51579874]
[1721037586070,2.4916,3354.1,3353.6,1.089]
[1721037586271,2.4916,3354.1,3353.8,1.089]
[1721037588115,2.4916,3354.1,3353.9,0.51577835]
[1721037588406,2.4916,3354.1,3353.8,4.07066]
[1721037588705,2.4916,3354.1,3354.0,1.089]
[1721037592484,2.4916,3354.1,3354.0,1.12679628]
[1721037593395,2.4916,3354.1,3354.0,0.03779628]
[1721037593732,3.82157518,3354.1,3353.9,1.089]
[1721037593884,3.19541744,3354.1,3354.0,0.03779628]
[1721037595487,2.412,3354.0,3353.7,1.089]
[1721037595784,3.86735437,3354.0,3353.7,1.089]
[1721037596122,3.03849142,3354.0,3353.7,1.089]
[1721037596621,3.03849142,3354.0,3353.9,1.089]
[1721037596825,2.412,3354.0,3353.9,1.089]
[1721037597515,3.03849142,3354.0,3353.9,1.089]
[1721037599728,3.03856604,3354.0,3353.9,1.089]
[1721037600130,2.251,3353.8,3353.3,0.62481591]
[1721037600304,2.8776377,3353.6,3353.4,3.49789502]
[1721037600517,0.6266377,3353.8,3353.5,4.19662899]
[1721037600818,0.6266377,3353.8,3353.7,1.089]
[1721037601597,0.6266377,3353.8,3353.5,1.089]
[1721037601932,2.251,3353.7,3353.5,1.089]
[1721037602995,0.6266377,3353.8,3353.5,1.089]
[1721037603191,0.6266377,3353.8,3353.7,1.089]
[1721037603418,0.6266377,3354.1,3353.7,7.17820408]
[1721037603620,0.6266377,3354.1,3354.0,4.07051]
[1721037603823,0.6266377,3354.8,3354.5,2.98101]
[1721037604031,0.6266377,3354.9,3354.7,1.089]
[1721037604260,3.20511493,3355.1,3354.8,1.089]
[1721037604261,2.2652,3355.1,3354.8,1.089]
[1721037604965,2.2652,3355.1,3354.8,4.0698]
[1721037605266,2.2652,3355.1,3354.8,1.089]
[1721037605482,2.89089875,3355.1,3354.8,1.089]
[1721037606231,2.89089875,3355.1,3354.7,2.98087]
[1721037607163,2.2652,3355.1,3354.7,2.98087]
[1721037608553,0.6251641,3355.2,3354.7,2.98087]
[1721037608767,0.6251641,3355.3,3354.7,2.98087]
[1721037609169,2.337,3355.4,3354.7,2.98087]
[1721037609170,2.9621641,3355.4,3354.7,2.98087]
[1721037609336,0.6251641,3355.3,3354.7,2.98087]
[1721037609932,2.9621641,3355.4,3354.7,2.98087]
[1721037610132,0.6251641,3355.3,3354.8,2.98079]
[1721037610487,2.337,3355.4,3354.8,2.98079]
[1721037610651,2.337,3355.4,3354.8,3.04039899]
[1721037611256,2.337,3355.4,3354.8,2.98079]
[1721037612595,2.337,3355.4,3355.0,2.98062]
[1721037612793,2.337,3355.4,3355.1,0.30402256]
[1721037613088,2.337,3355.4,3355.0,2.98062]
[1721037613445,2.337,3355.4,3355.1,2.98053]
[1721037614941,2.337,3355.4,3354.6,5.59394]
[1721037615147,2.337,3355.4,3354.6,2.98094]
[1721037615349,2.337,3355.4,3354.7,2.98087]
[1721037615582,3.32291089,3355.4,3354.7,2.98087]
[1721037615755,6.30318089,3355.4,3354.6,2.98092]
[1721037617393,6.30318089,3355.4,3354.7,0.03571257]
[1721037619511,3.04368114,3355.3,3354.7,0.03571257]
[1721037619789,2.9808,3354.8,3353.9,2.98152]
[1721037619951,2.3638,3354.7,3354.0,2.98146]
[1721037620150,2.3638,3354.7,3354.1,0.03605589]
[1721037620370,2.3638,3354.7,3354.0,2.98146]
[1721037620551,2.3638,3354.7,3354.1,0.03605589]
[1721037620769,2.3638,3354.7,3354.0,2.98146]
[1721037620968,5.34469,3354.7,3354.1,0.03605589]
[1721037621292,2.4308,3354.4,3353.7,2.98174]
[1721037623499,2.4308,3354.1,3353.6,3.0]
[1721037623649,2.4308,3354.1,3354.0,0.03616259]
[1721037623854,2.4308,3354.1,3353.6,5.98178]
[1721037624094,2.4308,3354.1,3354.0,0.03616259]
[1721037624304,2.4308,3354.1,3353.6,5.98178]
[1721037624753,2.4308,3354.1,3353.7,0.03633694]
[1721037625504,2.4308,3354.1,3353.8,2.98168]
[1721037625868,0.62420248,3354.7,3354.0,0.8978]
[1721037626097,2.3931,3355.9,3354.9,2.98071]
[1721037626393,1.24840496,3356.5,3354.9,2.98071]
[1721037626394,2.3931,3356.5,3355.8,2.613]
[1721037626607,2.3931,3356.5,3355.9,0.91175606]
[1721037626815,2.3931,3356.5,3356.0,2.97972]
[1721037626968,2.3931,3356.5,3356.1,3.0]
[1721037627175,2.3931,3356.5,3356.2,0.0349353]
[1721037628318,2.3931,3356.5,3356.2,3.0144853]
[1721037628884,2.3931,3356.5,3356.2,0.0349353]
[1721037629086,0.07449002,3356.4,3356.2,0.0349353]
[1721037629487,0.07449002,3356.4,3355.4,3.0]